lending/lending_fUSD_20250425
["ID","MTS","AMOUNT","RATE_DAILY","PERIOD"]
[358937886,1745562929226,300.0,0.00019,2]
[358937888,1745563293274,1944.9,0.00037808,60]
[358937893,1745563694963,-434.159057,0.00019617,2]
[358937894,1745563694987,-200.0,0.00019716,2]
[358937895,1745563695011,-200.0,0.00019886,2]
[358937896,1745563695036,-500.0,0.00019999,2]
[358937897,1745563695060,-500.0,0.00019999,2]
[358937898,1745563695086,-500.0,0.00019999,2]
[358937899,1745563695116,-202.63610186,0.00019999,2]
[358937900,1745563695140,-33488.08021934,0.0002,2]
[358937901,1745563695162,-185.71598517,0.0002,2]
[358937902,1745563700814,308.89580309,0.00019999,2]
[358937928,1745563831529,-200.0,0.000201,2]
[358937929,1745563831540,-200.0,0.00020305,2]
[358937930,1745563831550,-200.0,0.0002051,2]
[358937931,1745563831559,-200.0,0.00020866,2]
[358937932,1745563831569,-200.0,0.00021,2]
[358937933,1745563831579,-1075.25,0.00021142,2]
[358937934,1745563831588,-200.0,0.00021579,2]
[358937935,1745563831598,-250.0,0.00021579,2]
[358937936,1745563831607,-200.0,0.00021579,2]
[358937937,1745563831617,-250.0,0.00021579,2]
[358937938,1745563831627,-200.0,0.0002211,2]
[358937939,1745563831636,-250.0,0.0002211,2]
[358937940,1745563831645,-3172.84,0.00022562,2]
[358937941,1745563831655,-999.99,0.00022562,2]
[358937942,1745563831664,-200.0,0.00022608,2]
[358937943,1745563831673,-177.59,0.00022608,2]
[358937944,1745563831683,-885.19,0.0002282,2]
[358937945,1745563831692,-189.1817891,0.00023119,2]
[358937946,1745563831702,-250.0,0.0002312,2]
[358937947,1745563831711,-84510.21345379,0.000232,2]
[358937948,1745563831720,-222.49414168,0.000232,2]
[358937949,1745563831730,-1075.25,0.00023406,2]
[358937950,1745563831739,-1362.13370404,0.000239,5]
[358937951,1745563831750,-354.02,0.00024537,2]
[358937952,1745563831759,-150.0,0.00024537,7]
[358937953,1745563831769,-157.34,0.00024537,2]
[358937954,1745563831778,-1000.0,0.000247,2]
[358937955,1745563831787,-209.29,0.00024727,2]
[358937956,1745563831797,-1492.5471,0.0002479,2]
[358937957,1745563831806,-4046.5525,0.0002479,2]
[358937958,1745563831816,-8399.7229,0.0002479,2]
[358937959,1745563831825,-174.05559039,0.000249,2]
[358937960,1745563831835,-151.0,0.000249,7]
[358937961,1745563831844,-235.33061585,0.000249,7]
[358937962,1745563831854,-150.0,0.00024997,2]
[358937963,1745563831864,-200.0,0.00025661,2]
[358937964,1745563831874,-1075.25,0.0002567,2]
[358937965,1745563831884,-830.12,0.00026354,2]
[358937966,1745563831893,-1000.0,0.00026454,2]
[358937968,1745563831903,-184.12,0.00026551,2]
[358937970,1745563831912,-500.0,0.00027397,2]
[358937972,1745563831922,-545.03383644,0.00027397,2]
[358937974,1745563831931,-500.0,0.00027397,2]
[358937976,1745563831941,-500.0,0.00027397,2]
[358937978,1745563831950,-500.0,0.00027397,2]
[358937980,1745563831960,-500.0,0.00027397,2]
[358937982,1745563831970,-174.39,0.00027419,2]
[358937984,1745563831980,-757.18,0.00027425,30]
[358937986,1745563831990,-500.0,0.00027636,2]
[358937988,1745563832000,-181.72,0.00027636,2]
[358937990,1745563832010,-1075.25,0.00027934,2]
[358937992,1745563832019,-207.4,0.00028405,2]
[358937994,1745563832029,-1000.0,0.00029761,2]
[358937996,1745563832040,-215.0738,0.00029774,2]
[358937998,1745563832050,-174.05559039,0.00029812,2]
[358938000,1745563832060,-610.0,0.00030137,2]
[358938002,1745563832069,-1075.25,0.00030198,2]
[358938004,1745563832081,-163.31,0.00030474,2]
[358938006,1745563832091,-184.04,0.00030631,2]
[358938008,1745563832103,-700.0,0.00030928,11]
[358938010,1745563832113,-700.0,0.00030928,11]
[358938012,1745563832122,-700.0,0.00030928,11]
[358938015,1745563832133,-700.0,0.00030928,11]
[358938017,1745563832150,-700.0,0.00030928,11]
[358938019,1745563832159,-223.0315306,0.00031143,2]
[358938021,1745563832171,-208.8,0.00031597,2]
[358938022,1745563832183,-971.75148631,0.00032025,2]
[358938024,1745563832193,-1075.25,0.00032461,2]
[358938026,1745563832202,-231.28369723,0.00032512,2]
[358938027,1745563832212,-163.31,0.00032651,2]
[358938029,1745563832222,-151.45,0.00032877,30]
[358938030,1745563832232,-151.13,0.00032877,2]
[358938032,1745563832242,-208.8,0.00032966,2]
[358938033,1745563832251,-1000.0,0.00033068,2]
[358938035,1745563832261,-239.84119403,0.00033881,2]
[358938037,1745563832271,-150.0,0.00034,2]
[358938038,1745563832281,-354.02,0.00034352,2]
[358938040,1745563832291,-971.75148631,0.00034433,2]
[358938042,1745563832301,-150.0,0.00034548,10]
[358938044,1745563832311,-174.05559039,0.00034724,2]
[358938046,1745563832321,-1075.25,0.00034725,2]
[358938047,1745563832330,-163.31,0.00034828,2]
[358938049,1745563832341,-248.71531821,0.0003525,2]
[358938051,1745563832351,-500.0,0.00035286,5]
[358938053,1745563832361,-383.72447444,0.00035286,5]
[358938054,1745563832372,-1353.048,0.00035571,42]
[358938056,1745563832381,-200.0,0.00035616,2]
[358938058,1745563832392,-200.0,0.00035616,2]
[358938059,1745563832402,-200.0,0.00035616,2]
[358938061,1745563832412,-200.0,0.00035616,2]
[358938063,1745563832422,-200.0,0.00035616,2]
[358938065,1745563832433,-200.0,0.00035616,2]
[358938067,1745563832443,-200.0,0.00035616,2]
[358938069,1745563832453,-200.0,0.00035616,2]
[358938070,1745563832463,-200.0,0.00035616,2]
[358938072,1745563832474,-200.0,0.00035616,2]
[358938074,1745563832484,-200.0,0.00035616,2]
[358938075,1745563832494,-200.0,0.00035616,2]
[358938077,1745563832504,-200.0,0.00035616,2]
[358938079,1745563832515,-160.99538879,0.00035616,2]
[358938081,1745563832530,-39.00461121,0.00035616,2]
[358938083,1745563832540,-200.0,0.00035616,2]
[358938085,1745563832551,-200.0,0.00035616,2]
[358938087,1745563832561,-200.0,0.00035616,2]
[358938089,1745563832571,-211.38621753,0.00035616,2]
[358938091,1745563832582,-168.019,0.00035866,43]
[358938092,1745563832592,-757.18,0.00036139,30]
[358938094,1745563832602,-453.00000001,0.00036199,2]
[358938096,1745563832614,-245.0573465,0.00036248,2]
[358938098,1745563832624,-11924.4905617,0.00036248,2]
[358938100,1745563832635,-4172.7498584,0.00036248,2]
[358938102,1745563832645,-1056.396267,0.00036248,2]
[358938103,1745563832656,-1000.0,0.00036374,2]
[358938105,1745563832666,-199.51,0.000365,7]
[358938107,1745563832676,-152.0,0.00036614,3]
[358938109,1745563832686,-257.91778498,0.00036619,2]
[358938111,1745563832696,-971.75148631,0.00036842,2]
[358938112,1745563832707,-1075.25,0.00036989,2]
[358938114,1745563832717,-163.31,0.00037005,2]
[358938116,1745563832727,-166.66,0.00037209,2]
[358938118,1745563832737,-152.0,0.00037869,4]
[358938120,1745563832747,-267.46074303,0.00037988,2]
[358938122,1745563832758,-1667.4522084,0.00038123,4]
[358938123,1745563832768,-151.13,0.00038356,2]
[358938125,1745563832778,-256.42963805,0.00038356,2]
[358938127,1745563832788,-3968.82,0.000384,14]
[358938129,1745563832799,-166.66,0.00038437,2]
[358938131,1745563832809,-157.34,0.00038578,2]
[358938133,1745563832819,-612.33986127,0.00038657,7]
[358938137,1745563832860,-386.66013873,0.00038657,7]
[358938139,1745563832870,-999.0,0.00038657,7]
[358938140,1745563832880,-672.0501272,0.00038657,7]
[358938143,1745563832899,-326.9498728,0.00038657,7]
[358938145,1745563832909,-409.2091842,0.00038657,7]
[358938157,1745563837738,-589.7908158,0.00038657,7]
[358938158,1745563837748,-999.0,0.00038657,7]
[358938159,1745563837761,-999.0,0.00038657,7]
[358938160,1745563837771,-999.0,0.00038657,7]
[358938161,1745563837783,-999.0,0.00038657,7]
[358938162,1745563837793,-999.0,0.00038657,7]
[358938163,1745563837804,-999.0,0.00038657,7]
[358938164,1745563837814,-999.0,0.00038657,7]
[358938165,1745563837824,-999.0,0.00038657,7]
[358938166,1745563837833,-999.0,0.00038657,7]
[358938167,1745563837843,-999.0,0.00038657,7]
[358938168,1745563837852,-999.0,0.00038657,7]
[358938170,1745563837864,-999.0,0.00038657,7]
[358938171,1745563837874,-999.0,0.00038657,7]
[358938172,1745563837884,-999.0,0.00038657,7]
[358938173,1745563837894,-999.0,0.00038657,7]
[358938174,1745563837904,-999.0,0.00038657,7]
[358938175,1745563837914,-999.0,0.00038657,7]
[358938176,1745563837924,-999.0,0.00038657,7]
[358938177,1745563837934,-999.0,0.00038657,7]
[358938178,1745563837944,-878.38426718,0.00038657,7]
[358938179,1745563837954,-170.36,0.00038664,120]
[358938180,1745563837964,-1004.0,0.00039,5]
[358938181,1745563837974,-358.799999,0.00039,58]
[358938182,1745563837985,-199.47492282,0.00039,120]
[358938183,1745563837995,-152.0,0.00039125,5]
[358938184,1745563838007,-163.31,0.00039181,2]
[358938185,1745563838018,-971.75148631,0.0003925,2]
[358938186,1745563838028,-1075.25,0.00039253,2]
[358938187,1745563838039,-277.35679052,0.00039357,2]
[358938188,1745563838055,-165.0,0.00039412,2]
[358938189,1745563838066,-174.05559039,0.00039637,2]
[358938190,1745563838076,-166.66,0.00039666,2]
[358938191,1745563838087,-1000.0,0.00039681,2]
[358938192,1745563838097,-27384.8982178,0.0003969,4]
[358938193,1745563838108,-3968.82,0.000397,14]
[358938194,1745563838118,-150.0,0.00039726,2]
[358938195,1745563838128,-500.0,0.00039726,2]
[358938196,1745563838142,-500.0,0.00039726,2]
[358938197,1745563838153,-150.23655846,0.00039726,2]
[358938198,1745563838163,-500.0,0.00039726,2]
[358938199,1745563838174,-152.23192078,0.00039726,2]
[358938200,1745563838184,-500.0,0.00039726,2]
[358938201,1745563838194,-500.0,0.00039726,2]
[358938202,1745563838205,-150.0,0.00039726,2]
[358938203,1745563838217,-500.0,0.00039726,2]
[358938204,1745563838227,-500.0,0.00039726,2]
[358938205,1745563838237,-1152.0,0.00039726,2]
[358938206,1745563838247,-333.11593825,0.00039726,15]
[358938207,1745563838259,-150.0,0.00039781,2]
[358938208,1745563838268,-500.0,0.00039781,2]
[358938209,1745563838278,-500.0,0.00039781,2]
[358938210,1745563838288,-500.0,0.00039781,2]
[358938211,1745563838298,-501.54469409,0.00039781,2]
[358938212,1745563838309,-506.00670209,0.00039781,2]
[358938213,1745563838318,-150.0,0.00039781,2]
[358938214,1745563838329,-500.0,0.00039781,2]
[358938215,1745563838339,-500.0,0.00039781,2]
[358938216,1745563838349,-1152.0,0.00039781,2]
[358938217,1745563838359,-150.0,0.00039811,2]
[358938218,1745563838369,-150.0,0.00039827,2]
[358938219,1745563838380,-150.0,0.0003983,2]
[358938220,1745563838390,-206.8885183,0.00039836,2]
[358938221,1745563838400,-500.0,0.00039836,2]
[358938222,1745563838410,-500.0,0.00039836,2]
[358938223,1745563838420,-500.0,0.00039836,2]
[358938224,1745563838430,-150.0,0.00039836,2]
[358938225,1745563838440,-500.0,0.00039836,2]
[358938226,1745563838451,-500.0,0.00039836,2]
[358938227,1745563838461,-1152.0,0.00039836,2]
[358938228,1745563838471,-27384.8982178,0.0003985,4]
[358938229,1745563838480,-150.0,0.00039855,2]
[358938230,1745563838491,-150.0,0.00039857,2]
[358938231,1745563838508,-150.0,0.00039858,2]
[358938232,1745563838519,-150.0,0.00039869,2]
[358938233,1745563838529,-150.0,0.00039875,2]
[358938234,1745563838540,-27774.59031234,0.0003988,2]
[358938235,1745563838551,-12199.01337571,0.0003988,4]
[358938241,1745563840042,-190.0828151,0.00036349,2]
[358938242,1745563840052,-732.47797393,0.0003988,4]
[358938243,1745563840226,-1103.98480198,0.0003988,4]
[358938258,1745563842545,-9050.82304914,0.0003988,4]
[358938259,1745563842582,-332.07,0.0003988,4]
[358938260,1745563842784,-937.86,0.0003988,4]
[358938272,1745563845530,-151.0,0.00033439,2]
[358938273,1745563845540,-448.22381987,0.0003988,4]
[358938274,1745563845661,-2580.44519717,0.0003988,4]
[358938275,1745563845670,-150.0,0.00039882,2]
[358938276,1745563845680,-150.0,0.00039884,2]
[358938277,1745563845690,-150.0,0.0003989,2]
[358938278,1745563845699,-500.0,0.0003989,2]
[358938279,1745563845709,-500.0,0.0003989,2]
[358938280,1745563845718,-500.0,0.0003989,2]
[358938281,1745563845727,-178.10229189,0.0003989,2]
[358938282,1745563845737,-500.0,0.0003989,2]
[358938283,1745563845746,-500.0,0.0003989,2]
[358938284,1745563845755,-1152.0,0.0003989,2]
[358938285,1745563845766,-150.0,0.00039893,2]
[358938286,1745563845775,-150.0,0.00039896,2]
[358938287,1745563845785,-996.71,0.000399,31]
[358938288,1745563845794,-996.71,0.000399,31]
[358938289,1745563845804,-996.71,0.000399,31]
[358938290,1745563845814,-996.71,0.000399,31]
[358938291,1745563845823,-996.71,0.000399,31]
[358938292,1745563845834,-996.71,0.000399,31]
[358938293,1745563845843,-996.71,0.000399,31]
[358938294,1745563845852,-996.71,0.000399,31]
[358938295,1745563845862,-996.71,0.000399,31]
[358938296,1745563845872,-996.71,0.000399,31]
[358938297,1745563845881,-996.71,0.000399,31]
[358938298,1745563845891,-996.71,0.000399,31]
[358938299,1745563845902,-150.0,0.00039906,2]
[358938300,1745563845911,-150.0,0.00039908,2]
[358938301,1745563845922,-150.0,0.0003991,2]
[358938302,1745563845931,-150.0,0.00039914,2]
[358938303,1745563845941,-150.0,0.00039917,2]
[358938304,1745563845951,-150.0,0.00039932,2]
[358938305,1745563845960,-150.0,0.00039932,2]
[358938306,1745563845970,-150.0,0.00039939,2]
[358938308,1745563845979,-150.0,0.0003994,2]
[358938310,1745563845990,-151.0,0.00039945,14]
[358938312,1745563846001,-151.0,0.00039945,14]
[358938313,1745563846011,-291.162233,0.00039945,14]
[358938314,1745563846021,-151.0,0.00039945,14]
[358938315,1745563846031,-151.0,0.00039945,14]
[358938316,1745563846042,-151.0,0.00039945,14]
[358938317,1745563846052,-500.61395066,0.00039945,2]
[358938318,1745563846062,-500.0,0.00039945,2]
[358938319,1745563846073,-243.26636695,0.00039945,2]
[358938320,1745563846083,-500.0,0.00039945,2]
[358938321,1745563846093,-500.0,0.00039945,2]
[358938322,1745563846104,-1152.0,0.00039945,2]
[358938323,1745563846116,-151.0,0.00039949,14]
[358938324,1745563846127,-151.0,0.00039949,14]
[358938325,1745563846139,-151.0,0.00039949,14]
[358938326,1745563846149,-151.0,0.00039949,14]
[358938327,1745563846159,-151.0,0.00039949,14]
[358938328,1745563846169,-151.0,0.00039949,14]
[358938329,1745563846181,-150.0,0.0003995,2]
[358938330,1745563846191,-275.17845879,0.0003995,2]
[358938331,1745563846201,-150.0,0.00039953,2]
[358938332,1745563846211,-150.0,0.00039958,2]
[358938333,1745563846222,-150.0,0.00039959,2]
[358938334,1745563846231,-150.0,0.0003996,2]
[358938335,1745563846242,-150.0,0.00039961,2]
[358938336,1745563846252,-27384.8982178,0.00039966,4]
[358938337,1745563846261,-150.0,0.0003997,2]
[358938338,1745563846271,-150.0,0.00039972,2]
[358938339,1745563846281,-1048.58226988,0.00039981,7]
[358938340,1745563846291,-150.0,0.00039982,2]
[358938341,1745563846300,-150.0,0.00039992,2]
[358938342,1745563846310,-151.0,0.00039995,14]
[358938343,1745563846322,-500.0,0.0004,2]
[358938344,1745563846333,-500.0,0.0004,2]
[358938345,1745563846343,-500.0,0.0004,2]
[358938346,1745563846354,-1152.0,0.0004,2]
[358938347,1745563846364,-200.0,0.0004,61]
[358938348,1745563846375,-1000.0,0.0004,120]
[358938349,1745563846384,-2665.20865447,0.0004,4]
[358938350,1745563846394,-157.66,0.0004,30]
[358938351,1745563846403,-150.0,0.0004,2]
[358938352,1745563846412,-150.0,0.00040006,2]
[358938353,1745563846421,-27384.8982178,0.00040008,4]
[358938354,1745563846431,-150.0,0.0004001,2]
[358938355,1745563846441,-150.0,0.00040017,2]
[358938356,1745563846450,-150.0,0.00040018,2]
[358938357,1745563846460,-150.0,0.00040019,2]
[358938358,1745563846470,-150.0,0.0004002,2]
[358938359,1745563846482,-150.0,0.00040023,2]
[358938360,1745563846492,-180.92928944,0.00040027,13]
[358938361,1745563846501,-30181.44651293,0.00040028,5]
[358938362,1745563846511,-150.0,0.00040029,2]
[358938363,1745563846520,-257.29795687,0.0004003,2]
[358938364,1745563846529,-212.11637995,0.0004003,2]
[358938365,1745563846539,-150.0,0.00040031,2]
[358938366,1745563846548,-150.0,0.00040033,2]
[358938367,1745563846558,-150.0,0.00040034,2]
[358938368,1745563846568,-150.0,0.00040042,2]
[358938369,1745563846578,-150.0,0.00040044,2]
[358938370,1745563846587,-150.0,0.00040045,2]
[358938371,1745563846598,-150.0,0.00040046,2]
[358938372,1745563846608,-500.0,0.00040055,2]
[358938373,1745563846618,-500.0,0.00040055,2]
[358938374,1745563846628,-1152.0,0.00040055,2]
[358938375,1745563846637,-150.0,0.00040055,2]
[358938376,1745563846647,-150.0,0.00040065,2]
[358938377,1745563846656,-150.0,0.00040066,2]
[358938378,1745563846666,-150.0,0.00040067,2]
[358938379,1745563846676,-150.0,0.00040069,2]
[358938380,1745563846686,-150.0,0.00040081,2]
[358938381,1745563846695,-150.0,0.00040084,2]
[358938382,1745563846706,-27384.8982178,0.00040089,4]
[358938383,1745563846716,-27384.8982178,0.00040091,4]
[358938384,1745563846727,-150.0,0.00040092,2]
[358938385,1745563846737,-54769.7964357,0.000401,4]
[358938386,1745563846747,-150.0,0.00040106,2]
[358938387,1745563846758,-150.0,0.00040108,2]
[358938388,1745563846768,-500.0,0.0004011,2]
[358938389,1745563846778,-500.0,0.0004011,2]
[358938390,1745563846790,-1152.0,0.0004011,2]
[358938391,1745563846799,-151.0,0.0004011,14]
[358938392,1745563846809,-299.314075,0.0004011,14]
[358938393,1745563846819,-299.314075,0.0004011,14]
[358938394,1745563846829,-151.0,0.0004011,14]
[358938395,1745563846839,-151.0,0.0004011,14]
[358938396,1745563846849,-500.0,0.0004011,2]
[358938397,1745563846859,-500.0,0.0004011,2]
[358938398,1745563846869,-500.0,0.0004011,2]
[358938399,1745563846880,-152.84294284,0.0004011,2]
[358938400,1745563846890,-136924.491089,0.0004011,4]
[358938401,1745563846899,-150.0,0.00040111,2]
[358938402,1745563846909,-150.0,0.00040114,2]
[358938403,1745563846919,-150.0,0.00040115,2]
[358938404,1745563846929,-150.0,0.00040116,2]
[358938405,1745563846939,-27384.8982178,0.00040117,4]
[358938406,1745563846948,-611.5,0.00040119,60]
[358938407,1745563846958,-151.0,0.0004012,14]
[358938408,1745563846967,-151.0,0.0004012,14]
[358938409,1745563846977,-151.0,0.0004012,14]
[358938410,1745563846987,-151.0,0.0004012,14]
[358938411,1745563846996,-151.0,0.0004012,14]
[358938412,1745563847006,-151.0,0.0004012,14]
[358938413,1745563847016,-151.0,0.0004012,14]
[358938414,1745563847026,-151.0,0.0004012,14]
[358938415,1745563847036,-151.0,0.0004012,14]
[358938416,1745563847046,-151.0,0.0004012,14]
[358938417,1745563847055,-178.400828,0.0004012,14]
[358938418,1745563847066,-151.0,0.0004012,14]
[358938419,1745563847075,-159.885778,0.0004012,14]
[358938420,1745563847084,-151.0,0.0004012,14]
[358938421,1745563847094,-151.0,0.0004012,14]
[358938422,1745563847104,-151.0,0.0004012,14]
[358938423,1745563847114,-170.378045,0.0004012,14]
[358938424,1745563847124,-151.0,0.0004012,14]
[358938425,1745563847134,-151.0,0.0004012,14]
[358938426,1745563847146,-151.0,0.0004012,14]
[358938427,1745563847156,-153.142509,0.0004012,14]
[358938428,1745563847168,-151.0,0.0004012,14]
[358938429,1745563847179,-154.213775,0.0004012,14]
[358938430,1745563847190,-623.199179,0.0004012,14]
[358938431,1745563847202,-151.0,0.0004012,14]
[358938432,1745563847213,-151.0,0.0004012,14]
[358938433,1745563847228,-151.0,0.0004012,14]
[358938434,1745563847238,-136924.491089,0.0004012,4]
[358938435,1745563847247,-54769.7964357,0.00040127,4]
[358938436,1745563847256,-210.66175413,0.00040127,7]
[358938437,1745563847267,-154.539421,0.00040127,14]
[358938438,1745563847276,-151.0,0.00040127,14]
[358938439,1745563847285,-151.0,0.00040127,14]
[358938440,1745563847295,-151.0,0.00040127,14]
[358938441,1745563847304,-159.470933,0.00040127,14]
[358938442,1745563847313,-159.470933,0.00040127,14]
[358938443,1745563847323,-190.696339,0.00040127,14]
[358938444,1745563847332,-643.450534,0.00040127,14]
[358938445,1745563847343,-643.450534,0.00040127,14]
[358938446,1745563847352,-190.696339,0.00040127,14]
[358938447,1745563847361,-150.0,0.00040127,2]
[358938448,1745563847371,-244219.42340954,0.0004013,2]
[358938449,1745563847380,-247.72244,0.0004013,14]
[358938450,1745563847389,-299.314075,0.0004013,14]
[358938451,1745563847398,-299.314075,0.0004013,14]
[358938452,1745563847408,-151.0,0.0004013,14]
[358938453,1745563847417,-151.0,0.0004013,14]
[358938454,1745563847706,-604.126834,0.0004013,14]
[358938455,1745563847718,-604.126834,0.0004013,14]
[358938456,1745563847728,-151.0,0.0004013,14]
[358938457,1745563847738,-151.0,0.0004013,14]
[358938458,1745563847748,-162.632961,0.0004013,14]
[358938459,1745563847757,-151.0,0.0004013,14]
[358938460,1745563847768,-151.0,0.0004013,14]
[358938461,1745563847777,-152.404596,0.0004013,14]
[358938462,1745563847786,-151.0,0.0004013,14]
[358938463,1745563847795,-161.281903,0.0004013,14]
[358938464,1745563847805,-159.470933,0.0004013,14]
[358938465,1745563847814,-159.470933,0.0004013,14]
[358938466,1745563847822,-190.696339,0.0004013,14]
[358938467,1745563847832,-643.450534,0.0004013,14]
[358938468,1745563847841,-151.0,0.0004013,14]
[358938469,1745563847850,-643.450534,0.0004013,14]
[358938470,1745563847859,-190.696339,0.0004013,14]
[358938471,1745563847867,-154.608872,0.00040137,14]
[358938472,1745563847877,-151.0,0.00040137,14]
[358938473,1745563847886,-151.0,0.00040137,14]
[358938474,1745563847896,-151.0,0.00040137,14]
[358938475,1745563847905,-242.934734,0.00040137,14]
[358938476,1745563847914,-151.0,0.00040137,14]
[358938477,1745563847923,-151.0,0.00040137,14]
[358938478,1745563847933,-151.0,0.00040137,14]
[358938479,1745563847943,-151.0,0.00040137,14]
[358938480,1745563847952,-151.0,0.00040137,14]
[358938481,1745563847962,-151.0,0.00040137,14]
[358938482,1745563847971,-151.0,0.00040137,14]
[358938483,1745563847982,-281.032286,0.00040137,14]
[358938484,1745563847992,-151.0,0.00040137,14]
[358938485,1745563848002,-151.0,0.00040137,14]
[358938486,1745563848014,-152.985007,0.00040137,14]
[358938487,1745563848024,-151.0,0.00040137,14]
[358938488,1745563848033,-151.0,0.00040137,14]
[358938489,1745563848043,-623.199179,0.00040137,14]
[358938490,1745563848054,-151.0,0.00040137,14]
[358938491,1745563848063,-12751.2406351,0.00040137,2]
[358938492,1745563848073,-151.0,0.00040137,14]
[358938493,1745563848083,-151.0,0.00040137,14]
[358938494,1745563848093,-85909.6500517,0.00040137,2]
[358938495,1745563848103,-9652.4159963,0.00040137,2]
[358938496,1745563848113,-214.20976645,0.00040164,2]
[358938497,1745563848123,-500.0,0.00040164,2]
[358938498,1745563848133,-1152.0,0.00040164,2]
[358938499,1745563848145,-665.10290073,0.00040215,120]
[358938500,1745563848155,-500.0,0.00040219,2]
[358938501,1745563848164,-1152.0,0.00040219,2]
[358938502,1745563848174,-500.0,0.00040274,2]
[358938503,1745563848184,-1152.0,0.00040274,2]
[358938504,1745563848194,-500.0,0.00040329,2]
[358938505,1745563848204,-1152.0,0.00040329,2]
[358938506,1745563848216,-18175.77172085,0.00040358,2]
[358938507,1745563848225,-152.0,0.0004038,6]
[358938508,1745563848235,-500.0,0.00040384,2]
[358938509,1745563848244,-1152.0,0.00040384,2]
[358938510,1745563848253,-168.18,0.00040438,14]
[358938511,1745563848264,-500.0,0.00040438,2]
[358938512,1745563848274,-1152.0,0.00040438,2]
[358938513,1745563848283,-299.0,0.00040466,120]
[358938514,1745563848293,-500.0,0.00040493,2]
[358938515,1745563848303,-1152.0,0.00040493,2]
[358938516,1745563848312,-20902.8184829,0.000405,2]
[358938517,1745563848322,-3968.82,0.000405,14]
[358938518,1745563848331,-500.0,0.00040548,2]
[358938519,1745563848340,-1152.0,0.00040548,2]
[358938520,1745563848349,-495.72091637,0.00040603,2]
[358938521,1745563848359,-1152.0,0.00040603,2]
[358938522,1745563848368,-1152.0,0.00040658,2]
[358938523,1745563848377,-1333.0,0.00040658,120]
[358938524,1745563848387,-1152.0,0.00040712,2]
[358938525,1745563848396,-287.61899177,0.00040726,2]
[358938526,1745563848405,-1000.0,0.00040765,5]
[358938527,1745563848415,-1152.0,0.00040767,2]
[358938528,1745563848424,-604.126834,0.00040802,14]
[358938529,1745563848433,-604.126834,0.00040802,14]
[358938530,1745563848442,-151.0,0.00040802,14]
[358938531,1745563848452,-151.0,0.00040802,14]
[358938532,1745563848461,-151.0,0.00040802,14]
[358938533,1745563848471,-151.0,0.00040802,14]
[358938534,1745563848480,-151.0,0.00040802,14]
[358938535,1745563848490,-159.470933,0.00040802,14]
[358938536,1745563848499,-159.470933,0.00040802,14]
[358938537,1745563848509,-190.696339,0.00040802,14]
[358938538,1745563848518,-643.450534,0.00040802,14]
[358938539,1745563848527,-643.450534,0.00040802,14]
[358938540,1745563848537,-190.696339,0.00040802,14]
[358938541,1745563848546,-152.888685,0.00040812,14]
[358938542,1745563848556,-1152.0,0.00040822,2]
[358938543,1745563848565,-1152.0,0.00040877,2]
[358938544,1745563848575,-239.04802,0.00040888,30]